fUSD/lending_fUSD_20250823
["ID","MTS","AMOUNT","RATE_DAILY","PERIOD"]
[381004337,1755936644163,-500.0,0.00012438,2]
[381004338,1755936644174,-497.29499444,0.00012456,2]
[381004339,1755936644183,-150.0,0.00012456,2]
[381004340,1755936644193,-200.0,0.00012487,2]
[381004341,1755936644203,-150.0,0.00012499,2]
[381004342,1755936644212,-5000.0,0.000125,2]
[381004343,1755936644222,-1000.0,0.00012521,2]
[381004344,1755936644231,-1000.0,0.00012521,2]
[381004345,1755936644241,-1000.0,0.00012521,2]
[381004346,1755936644251,-150.0,0.00012532,2]
[381004347,1755936644261,-599.0,0.00012541,2]
[381004348,1755936644271,-1899.0,0.00012541,2]
[381004349,1755936644280,-1186.0,0.00012541,2]
[381004350,1755936644290,-500.0,0.00012541,2]
[381004351,1755936644300,-150.0,0.00012541,2]
[381004352,1755936644310,-252.65745406,0.00012548,2]
[381004353,1755936644319,-174.37490696,0.00012548,2]
[381004354,1755936644329,-150.0,0.00012553,2]
[381004355,1755936644339,-150.0,0.00012597,2]
[381004356,1755936644348,-469.06,0.00012603,2]
[381004357,1755936644358,-469.06,0.00012603,2]
[381004358,1755936644367,-469.06,0.00012603,2]
[381004359,1755936644378,-469.06,0.00012603,2]
[381004360,1755936644387,-469.06,0.00012603,2]
[381004362,1755936644397,-469.06,0.00012603,2]
[381004364,1755936644407,-469.06,0.00012603,2]
[381004365,1755936644416,-935.07,0.00012603,2]
[381004366,1755936644426,-1598.42,0.00012603,2]
[381004368,1755936644436,-799.21,0.00012603,2]
[381004370,1755936644446,-799.21,0.00012603,2]
[381004371,1755936644456,-799.21,0.00012603,2]
[381004372,1755936644465,-799.21,0.00012603,2]
[381004373,1755936644475,-1598.29,0.00012603,2]
[381004374,1755936644485,-799.21,0.00012603,2]
[381004375,1755936644495,-799.21,0.00012603,2]
[381004376,1755936644505,-150.0,0.00012608,2]
[381004377,1755936644514,-199.33,0.00012611,2]
[381004378,1755936644524,-4448.687,0.00012623,2]
[381004379,1755936644534,-184.219,0.00012623,2]
[381004380,1755936644544,-150.0,0.00012646,2]
[381004381,1755936644554,-150.0,0.00012677,2]
[381004382,1755936644564,-150.0,0.00012684,2]
[381004383,1755936644573,-150.0,0.00012695,2]
[381004384,1755936644583,-248.56717847,0.00012712,2]
[381004385,1755936644592,-254.09098068,0.00012712,2]
[381004386,1755936644602,-500.0,0.00012712,2]
[381004387,1755936644611,-500.0,0.00012712,2]
[381004388,1755936644621,-199.94092482,0.00012712,2]
[381004389,1755936644631,-756.0,0.00012712,2]
[381004390,1755936644641,-756.0,0.00012712,2]
[381004391,1755936644651,-500.0,0.00012712,2]
[381004392,1755936644660,-807.1533506,0.00012752,2]
[381004393,1755936644670,-150.0,0.0001276,2]
[381004394,1755936644680,-551.98041122,0.00012771,2]
[381004395,1755936644689,-1600.0,0.0001278,2]
[381004396,1755936644699,-3000.0,0.0001278,2]
[381004397,1755936644708,-151.0,0.00012791,2]
[381004398,1755936644719,-150.0,0.00012792,2]
[381004399,1755936644728,-150.0,0.00012801,2]
[381004400,1755936644738,-599.0,0.00012815,2]
[381004401,1755936644748,-1899.0,0.00012815,2]
[381004402,1755936644758,-1186.0,0.00012815,2]
[381004403,1755936644768,-500.0,0.00012815,2]
[381004404,1755936644777,-269.27913465,0.00012815,2]
[381004405,1755936644787,-166.66,0.00012818,2]
[381004406,1755936644796,-2451.66421,0.0001282,2]
[381004407,1755936644805,-172.99515901,0.00012834,2]
[381004408,1755936644814,-150.0,0.00012836,2]
[381004409,1755936644825,-150.0,0.00012877,2]
[381004410,1755936644834,-150.0,0.00012877,2]
[381004411,1755936644844,-200.0,0.00012882,2]
[381004412,1755936644853,-266.03773398,0.00012883,2]
[381004413,1755936644864,-150.0,0.0001289,2]
[381004414,1755936644874,-150.0,0.00012912,2]
[381004415,1755936644883,-180.1002563,0.00012921,2]
[381004416,1755936644893,-150.0,0.00012926,2]
[381004417,1755936644903,-500.0,0.00012986,2]
[381004418,1755936644912,-500.0,0.00012986,2]
[381004419,1755936644922,-756.0,0.00012986,2]
[381004420,1755936644932,-756.0,0.00012986,2]
[381004421,1755936644941,-500.0,0.00012986,2]
[381004422,1755936644951,-150.0,0.00012988,2]
[381004423,1755936644960,-150.0,0.00012988,2]
[381004424,1755936644970,-150.0,0.00012988,2]
[381004425,1755936644980,-150.0,0.00012988,2]
[381004426,1755936644990,-150.0,0.00012988,2]
[381004427,1755936645000,-313.48525,0.00013,2]
[381004428,1755936645011,-5000.0,0.00013,2]
[381004429,1755936645020,-912.3515014,0.00013002,2]
[381004430,1755936645031,-497.29499444,0.00013011,2]
[381004431,1755936645040,-150.0,0.0001305,2]
[381004432,1755936645050,-150.0,0.00013064,2]
[381004433,1755936645060,-334.5472959,0.00013064,2]
[381004434,1755936645070,-160.0,0.00013064,2]
[381004435,1755936645082,-287.61899177,0.00013064,2]
[381004436,1755936645092,-1500.0,0.00013068,2]
[381004437,1755936645101,-1500.0,0.00013068,2]
[381004438,1755936645114,-1500.0,0.00013068,2]
[381004439,1755936645127,-150.0,0.00013085,2]
[381004440,1755936645138,-599.0,0.00013089,2]
[381004441,1755936645147,-1899.0,0.00013089,2]
[381004442,1755936645157,-1186.0,0.00013089,2]
[381004443,1755936645168,-500.0,0.00013089,2]
[381004444,1755936645178,-3007.0,0.00013132,2]
[381004445,1755936645187,-150.0,0.0001314,2]
[381004446,1755936645197,-799.21,0.00013151,2]
[381004447,1755936645206,-799.21,0.00013151,2]
[381004448,1755936645216,-937.96,0.00013151,2]
[381004449,1755936645225,-700.22,0.00013151,2]
[381004450,1755936645319,-413.17,0.00013165,2]
[381004451,1755936645330,-150.0,0.00013174,2]
[381004452,1755936645339,-150.0,0.00013183,2]
[381004453,1755936645348,-433.0,0.00013188,2]
[381004454,1755936645358,-550.19214267,0.00013195,2]
[381004455,1755936645369,-1000.0,0.00013211,2]
[381004456,1755936645378,-150.0,0.00013216,2]
[381004457,1755936645387,-203.5731366,0.00013226,2]
[381004458,1755936645397,-3007.0,0.00013247,2]
[381004459,1755936645406,-500.0,0.0001326,2]
[381004460,1755936645416,-222.96290798,0.0001326,2]
[381004461,1755936645428,-756.0,0.0001326,2]
[381004462,1755936645438,-756.0,0.0001326,2]
[381004463,1755936645448,-500.0,0.0001326,2]
[381004464,1755936645458,-165.61,0.0001327,2]
[381004465,1755936645467,-150.0,0.00013281,2]
[381004466,1755936645476,-996.0,0.0001329,2]
[381004467,1755936645486,-150.0,0.00013291,2]
[381004468,1755936645495,-150.0,0.00013298,2]
[381004469,1755936645505,-2351.0,0.00013301,2]
[381004470,1755936645515,-2451.66421,0.0001332,2]
[381004471,1755936645524,-150.0,0.00013329,2]
[381004472,1755936645534,-151.0,0.00013339,2]
[381004473,1755936645543,-229.0,0.0001335,2]
[381004474,1755936645553,-599.0,0.00013363,2]
[381004475,1755936645563,-1899.0,0.00013363,2]
[381004476,1755936645572,-1186.0,0.00013363,2]
[381004477,1755936645582,-500.0,0.00013363,2]
[381004478,1755936645592,-150.0,0.00013367,2]
[381004479,1755936645602,-200.0,0.00013371,2]
[381004480,1755936645612,-150.0,0.00013378,2]
[381004481,1755936645622,-996.0,0.00013391,2]
[381004482,1755936645631,-172.99515901,0.000134,2]
[381004483,1755936645641,-150.0,0.00013423,2]
[381004484,1755936645651,-539.5,0.00013425,2]
[381004485,1755936645660,-1208.65,0.00013425,2]
[381004486,1755936645670,-347.34,0.00013425,2]
[381004487,1755936645679,-408.48,0.00013425,2]
[381004488,1755936645689,-408.48,0.00013425,2]
[381004489,1755936645698,-408.48,0.00013425,2]
[381004490,1755936645708,-173.7,0.00013425,2]
[381004491,1755936645717,-816.37,0.00013425,2]
[381004492,1755936645726,-173.7,0.00013425,2]
[381004494,1755936645736,-173.7,0.00013425,2]
[381004495,1755936645745,-539.5,0.00013425,2]
[381004497,1755936645755,-539.5,0.00013425,2]
[381004498,1755936645765,-1600.0,0.00013425,2]
[381004499,1755936645774,-150.0,0.00013443,2]
[381004500,1755936645783,-150.0,0.00013476,2]
[381004501,1755936645793,-539.5,0.00013479,2]
[381004502,1755936645806,-539.5,0.00013479,2]
[381004503,1755936645817,-5800.0,0.00013495,2]
[381004504,1755936645826,-29075.25303379,0.000135,2]
[381004510,1755936646526,-3052.33750789,0.000135,2]
[381004512,1755936646538,-900.8436616,0.000135,2]
[381004513,1755936646549,-577.36824685,0.000135,2]
[381004515,1755936646561,-574.96222606,0.000135,2]
[381004519,1755936647151,-255.02131624,0.00012329,2]
[381004520,1755936647162,-153.45868376,0.00012329,2]
[381004521,1755936647174,-799.21,0.00012603,2]
[381004522,1755936647182,-539.5,0.00013479,2]
[381004523,1755936647191,-1171.83131624,0.000135,2]
[381004524,1755936647203,-113175.23400757,0.000135,2]
[381004525,1755936647213,-8480.45,0.000135,2]
[381004526,1755936647224,-500.0,0.000135,2]
[381004527,1755936647234,-996.0,0.00013502,2]
[381004528,1755936647243,-5800.0,0.00013503,2]
[381004529,1755936647253,-5800.0,0.00013512,2]
[381004530,1755936647263,-5800.0,0.00013512,2]
[381004531,1755936647272,-150.0,0.00013519,2]
[381004532,1755936647281,-5800.0,0.0001352,2]
[381004533,1755936647291,-5800.0,0.00013529,2]
[381004534,1755936647300,-500.0,0.00013534,2]
[381004535,1755936647310,-756.0,0.00013534,2]
[381004536,1755936647321,-756.0,0.00013534,2]
[381004537,1755936647331,-500.0,0.00013534,2]
[381004538,1755936647340,-5800.0,0.00013537,2]
[381004539,1755936647350,-150.0,0.00013547,2]
[381004540,1755936647359,-799.21,0.00013562,2]
[381004541,1755936647369,-799.21,0.00013562,2]
[381004542,1755936647378,-799.21,0.00013562,2]
[381004543,1755936647388,-799.21,0.00013562,2]
[381004544,1755936647398,-799.21,0.00013562,2]
[381004545,1755936647408,-799.21,0.00013562,2]
[381004546,1755936647416,-497.29499444,0.00013567,2]
[381004547,1755936647427,-1564.60502854,0.00013567,2]
[381004548,1755936647436,-259.0,0.00013571,2]
[381004549,1755936647446,-150.0,0.00013574,2]
[381004550,1755936647455,-150.0,0.00013595,2]
[381004551,1755936647465,-259.0,0.00013599,2]
[381004552,1755936647474,-259.0,0.00013604,2]
[381004553,1755936647484,-877.62947116,0.00013616,2]
[381004554,1755936647493,-2000.0,0.00013616,2]
[381004555,1755936647503,-894.18856329,0.00013616,2]
[381004556,1755936647512,-599.0,0.00013637,2]
[381004557,1755936647522,-1899.0,0.00013637,2]
[381004558,1755936647531,-1186.0,0.00013637,2]
[381004559,1755936647541,-526.68027373,0.00013637,2]
[381004560,1755936647552,-259.0,0.00013638,2]
[381004561,1755936647561,-259.0,0.00013642,2]
[381004562,1755936647571,-259.0,0.00013651,2]
[381004563,1755936647580,-251.91,0.00013658,2]
[381004564,1755936647589,-176.70101194,0.00013671,2]
[381004565,1755936647599,-150.0,0.00013671,2]
[381004566,1755936647608,-276.89496337,0.00013671,2]
[381004567,1755936647618,-150.0,0.00013671,2]
[381004568,1755936647628,-150.0,0.00013671,2]
[381004569,1755936647637,-150.0,0.00013671,2]
[381004570,1755936647647,-150.0,0.00013671,2]
[381004571,1755936647657,-150.0,0.00013671,2]
[381004572,1755936647666,-156.52260195,0.00013671,2]
[381004573,1755936647677,-150.0,0.00013671,2]
[381004574,1755936647687,-996.0,0.00013681,2]
[381004575,1755936647696,-150.0,0.00013684,2]
[381004576,1755936647706,-317.47800243,0.00013685,2]
[381004577,1755936647716,-404.62882662,0.00013685,2]
[381004578,1755936647725,-491.77965082,0.00013686,2]
[381004579,1755936647735,-578.93047502,0.00013686,2]
[381004580,1755936647744,-666.08129921,0.00013686,2]
[381004581,1755936647753,-753.23212341,0.00013687,2]
[381004582,1755936647763,-840.3829476,0.00013687,2]
[381004583,1755936647772,-927.5337718,0.00013688,2]
[381004584,1755936647782,-1014.68459599,0.00013688,2]
[381004585,1755936647791,-996.0,0.00013696,2]
[381004586,1755936647801,-290638.19913255,0.00013698,2]
[381004587,1755936647811,-794.73364703,0.00013698,2]
[381004588,1755936647820,-400.0,0.00013698,2]
[381004589,1755936647829,-400.75018138,0.00013698,2]
[381004590,1755936647839,-401.66982112,0.00013698,2]
[381004591,1755936647849,-400.0,0.00013698,2]
[381004592,1755936647858,-400.0,0.00013698,2]
[381004593,1755936647868,-401.32197022,0.00013698,2]
[381004594,1755936647878,-400.74171666,0.00013698,2]
[381004595,1755936647888,-419.94248229,0.00013698,2]
[381004596,1755936647898,-400.0,0.00013698,2]
[381004597,1755936647908,-400.0,0.00013698,2]
[381004598,1755936647920,-300.0,0.00013698,2]
[381004599,1755936647930,-400.0,0.00013698,2]
[381004600,1755936647940,-400.0,0.00013698,2]
[381004601,1755936647950,-400.0,0.00013698,2]
[381004602,1755936647959,-400.0,0.00013698,2]
[381004603,1755936647969,-400.0,0.00013698,2]
[381004604,1755936647979,-400.0,0.00013698,2]
[381004605,1755936647988,-400.0,0.00013698,2]
[381004606,1755936647999,-401.36878167,0.00013698,2]
[381004607,1755936648010,-401.04635497,0.00013698,2]
[381004608,1755936648020,-401.53462726,0.00013698,2]
[381004609,1755936648029,-400.73949533,0.00013698,2]
[381004610,1755936648039,-401.64121952,0.00013698,2]
[381004611,1755936648050,-400.0,0.00013698,2]
[381004612,1755936648059,-400.39175978,0.00013698,2]
[381004613,1755936648069,-400.0,0.00013698,2]
[381004614,1755936648081,-401.35194902,0.00013698,2]
[381004615,1755936648090,-400.0,0.00013698,2]
[381004616,1755936648099,-400.0,0.00013698,2]
[381004617,1755936648109,-529.46,0.00013698,2]
[381004618,1755936648119,-400.0,0.00013698,2]
[381004619,1755936648129,-400.0,0.00013698,2]
[381004620,1755936648139,-520.14,0.00013698,2]
[381004621,1755936648148,-400.0,0.00013698,2]
[381004622,1755936648158,-400.0,0.00013698,2]
[381004623,1755936648167,-400.0,0.00013698,2]
[381004624,1755936648177,-400.0,0.00013698,2]
[381004625,1755936648187,-400.0,0.00013698,2]
[381004626,1755936648196,-400.0,0.00013698,2]
[381004627,1755936648206,-405.03295601,0.00013698,2]
[381004628,1755936648215,-400.0,0.00013698,2]
[381004629,1755936648225,-400.0,0.00013698,2]
[381004630,1755936648235,-400.0,0.00013698,2]
[381004631,1755936648245,-400.0,0.00013698,2]
[381004632,1755936648254,-400.0,0.00013698,2]
[381004633,1755936648263,-400.0,0.00013698,2]
[381004634,1755936648272,-400.0,0.00013698,2]
[381004635,1755936648282,-400.0,0.00013698,2]
[381004636,1755936648292,-525.83,0.00013698,2]
[381004637,1755936648301,-400.0,0.00013698,2]
[381004638,1755936648450,-400.0,0.00013698,2]
[381004639,1755936648461,-400.0,0.00013698,2]
[381004640,1755936648475,-800.18,0.00013698,2]
[381004641,1755936648485,-630.55,0.00013698,2]
[381004642,1755936648495,-313.98544454,0.00013698,2]
[381004643,1755936648505,-400.0,0.00013698,2]
[381004644,1755936648515,-400.0,0.00013698,2]
[381004645,1755936648525,-400.0,0.00013698,2]
[381004646,1755936648536,-400.0,0.00013698,2]
[381004647,1755936648546,-554.13,0.00013698,2]
[381004648,1755936648556,-510.38376983,0.00013698,2]
[381004649,1755936648566,-400.0,0.00013698,2]
[381004650,1755936648576,-400.0,0.00013698,2]
[381004651,1755936648586,-219.702206,0.00013698,2]
[381004652,1755936648595,-400.0,0.00013698,2]
[381004653,1755936648605,-400.0,0.00013698,2]
[381004654,1755936648615,-400.0,0.00013698,2]
[381004655,1755936648624,-400.0,0.00013698,2]
[381004656,1755936648634,-400.0,0.00013698,2]
[381004657,1755936648644,-400.0,0.00013698,2]
[381004658,1755936648653,-400.0,0.00013698,2]
[381004659,1755936648663,-694.3,0.00013698,2]
[381004660,1755936648674,-400.0,0.00013698,2]
[381004661,1755936648684,-400.0,0.00013698,2]
[381004662,1755936648694,-400.0,0.00013698,2]
[381004663,1755936648704,-401.76906955,0.00013698,2]
[381004664,1755936648714,-400.0,0.00013698,2]
[381004665,1755936648724,-400.0,0.00013698,2]
[381004666,1755936648734,-519.58,0.00013698,2]
[381004667,1755936648743,-439.27,0.00013698,2]
[381004668,1755936648752,-400.0,0.00013698,2]
[381004669,1755936648762,-438.43,0.00013698,2]
[381004670,1755936648773,-400.0,0.00013698,2]
[381004671,1755936648782,-400.0,0.00013698,2]
[381004672,1755936648792,-415.55,0.00013698,2]
[381004673,1755936648801,-400.0,0.00013698,2]
[381004674,1755936648811,-500.01,0.00013698,2]
[381004675,1755936648821,-400.0,0.00013698,2]
[381004676,1755936648831,-425.9,0.00013698,2]
[381004677,1755936648841,-401.21868407,0.00013698,2]
[381004678,1755936648851,-400.0,0.00013698,2]
[381004679,1755936648861,-400.0,0.00013698,2]
[381004680,1755936648871,-400.0,0.00013698,2]
[381004681,1755936648880,-400.0,0.00013698,2]
[381004682,1755936648890,-400.0,0.00013698,2]
[381004683,1755936648900,-400.0,0.00013698,2]
[381004684,1755936648910,-400.0,0.00013698,2]
[381004685,1755936648921,-400.0,0.00013698,2]
[381004686,1755936648931,-400.0,0.00013698,2]
[381004687,1755936648941,-400.0,0.00013698,2]
[381004688,1755936648951,-151.0,0.00013698,2]
[381004689,1755936648961,-151.0,0.00013698,2]
[381004690,1755936648971,-531.77,0.00013698,2]
[381004691,1755936648981,-400.0,0.00013698,2]
[381004692,1755936648991,-400.0,0.00013698,2]
[381004693,1755936649002,-400.0,0.00013698,2]
[381004694,1755936649012,-400.0,0.00013698,2]
[381004695,1755936649022,-400.0,0.00013698,2]
[381004696,1755936649031,-658.35,0.00013698,2]
[381004697,1755936649041,-400.0,0.00013698,2]
[381004698,1755936649051,-400.0,0.00013698,2]
[381004699,1755936649061,-400.0,0.00013698,2]
[381004700,1755936649071,-417.06,0.00013698,2]
[381004701,1755936649082,-400.0,0.00013698,2]
[381004702,1755936649091,-400.0,0.00013698,2]
[381004703,1755936649101,-400.0,0.00013698,2]
[381004704,1755936649111,-400.0,0.00013698,2]
[381004705,1755936649121,-482.94,0.00013698,2]
[381004706,1755936649130,-400.0,0.00013698,2]
[381004707,1755936649140,-400.0,0.00013698,2]
[381004708,1755936649150,-400.0,0.00013698,2]
[381004709,1755936649159,-400.0,0.00013698,2]
[381004710,1755936649169,-400.0,0.00013698,2]
[381004711,1755936649179,-634.36,0.00013698,2]
[381004712,1755936649189,-400.0,0.00013698,2]
[381004713,1755936649198,-513.17,0.00013698,2]
[381004714,1755936649208,-400.0,0.00013698,2]
[381004715,1755936649218,-400.0,0.00013698,2]
[381004716,1755936649228,-180.85462609,0.00013698,2]
[381004717,1755936649238,-400.0,0.00013698,2]
[381004718,1755936649248,-400.0,0.00013698,2]
[381004719,1755936649258,-547.55,0.00013698,2]
[381004720,1755936649268,-402.26000532,0.00013698,2]
[381004721,1755936649279,-400.0,0.00013698,2]
[381004722,1755936649289,-553.23,0.00013698,2]
[381004723,1755936649299,-509.91,0.00013698,2]
[381004724,1755936649310,-400.0,0.00013698,2]
[381004725,1755936649320,-152.244524,0.00013698,2]
[381004726,1755936649329,-678.92,0.00013698,2]
[381004727,1755936649339,-400.0,0.00013698,2]
[381004728,1755936649349,-400.0,0.00013698,2]
[381004729,1755936649358,-372.91706575,0.00013698,2]
[381004730,1755936649368,-400.0,0.00013698,2]
[381004731,1755936649378,-400.0,0.00013698,2]
[381004732,1755936649387,-159.582382,0.00013698,2]
[381004733,1755936649396,-400.0,0.00013698,2]
[381004734,1755936649406,-405.95,0.00013698,2]
[381004735,1755936649416,-400.98356617,0.00013698,2]
[381004736,1755936649427,-544.66,0.00013698,2]
[381004737,1755936649437,-706.26,0.00013698,2]
[381004738,1755936649447,-400.0,0.00013698,2]
[381004739,1755936649457,-400.0,0.00013698,2]
[381004740,1755936649466,-400.0,0.00013698,2]
[381004741,1755936649476,-400.0,0.00013698,2]
[381004742,1755936649485,-402.59196928,0.00013698,2]
[381004743,1755936649495,-400.0,0.00013698,2]
[381004744,1755936649506,-400.0,0.00013698,2]
[381004745,1755936649516,-400.0,0.00013698,2]
[381004746,1755936649525,-400.78799082,0.00013698,2]
[381004747,1755936649535,-214.33128735,0.00013698,2]
[381004748,1755936649545,-400.0,0.00013698,2]
[381004749,1755936649555,-400.0,0.00013698,2]
[381004750,1755936649564,-401.22626411,0.00013698,2]
[381004751,1755936649574,-400.0,0.00013698,2]
[381004752,1755936649584,-400.0,0.00013698,2]
[381004753,1755936649594,-487.12,0.00013698,2]
[381004754,1755936649604,-435.54,0.00013698,2]
[381004755,1755936649614,-400.0,0.00013698,2]
[381004756,1755936649623,-400.0,0.00013698,2]
[381004757,1755936649632,-400.0,0.00013698,2]
[381004758,1755936649641,-482.93,0.00013698,2]
[381004759,1755936649650,-400.0,0.00013698,2]
[381004760,1755936649660,-471.19,0.00013698,2]
[381004761,1755936649670,-400.0,0.00013698,2]
[381004762,1755936649680,-480.14834608,0.00013698,2]
[381004763,1755936649690,-400.0,0.00013698,2]
[381004764,1755936649700,-331.32066352,0.00013698,2]
[381004765,1755936649710,-817.11,0.00013698,2]
[381004766,1755936649719,-601.98,0.00013698,2]
[381004767,1755936649728,-400.0,0.00013698,2]
[381004768,1755936649738,-400.0,0.00013698,2]
[381004769,1755936649748,-400.0,0.00013698,2]
[381004770,1755936649758,-400.0,0.00013698,2]
[381004771,1755936649768,-439.26,0.00013698,2]
[381004772,1755936649777,-400.0,0.00013698,2]
[381004773,1755936649787,-400.0,0.00013698,2]
[381004774,1755936649797,-802.6,0.00013698,2]
[381004775,1755936649807,-401.93741075,0.00013698,2]
[381004776,1755936649817,-400.0,0.00013698,2]
[381004777,1755936649826,-400.0,0.00013698,2]
[381004778,1755936649836,-400.0,0.00013698,2]
[381004779,1755936649846,-400.0,0.00013698,2]
[381004780,1755936649856,-400.0,0.00013698,2]
[381004781,1755936649866,-400.0,0.00013698,2]
[381004782,1755936649876,-481.7,0.00013698,2]
[381004783,1755936649885,-644.85,0.00013698,2]
[381004784,1755936649895,-400.0,0.00013698,2]
[381004785,1755936649905,-400.0,0.00013698,2]
[381004786,1755936649915,-436.93531899,0.00013698,2]
[381004787,1755936649926,-1393.2,0.00013698,2]
[381004788,1755936649936,-640.81,0.00013698,2]
[381004789,1755936649945,-992.19,0.00013698,2]
[381004790,1755936649955,-400.49874064,0.00013698,2]
[381004791,1755936649964,-400.0,0.00013698,2]
[381004792,1755936649974,-402.2955367,0.00013698,2]
[381004793,1755936649984,-400.0,0.00013698,2]
[381004794,1755936649994,-400.0,0.00013698,2]
[381004795,1755936650010,-537.78862138,0.00013698,2]
[381004796,1755936650020,-400.0,0.00013698,2]
[381004797,1755936650030,-400.0,0.00013698,2]
[381004798,1755936650040,-439.54,0.00013698,2]
[381004799,1755936650050,-400.0,0.00013698,2]
[381004800,1755936650060,-224.14466551,0.00013698,2]
[381004801,1755936650071,-400.0,0.00013698,2]
[381004802,1755936650082,-400.0,0.00013698,2]
[381004803,1755936650092,-401.6325133,0.00013698,2]
[381004804,1755936650101,-572.43,0.00013698,2]
[381004805,1755936650111,-400.0,0.00013698,2]
[381004806,1755936650120,-400.0,0.00013698,2]
[381004807,1755936650130,-400.0,0.00013698,2]
[381004808,1755936650139,-491.22,0.00013698,2]
[381004809,1755936650149,-400.0,0.00013698,2]
[381004810,1755936650158,-400.0,0.00013698,2]
[381004811,1755936650169,-942.54,0.00013698,2]
[381004812,1755936650179,-400.0,0.00013698,2]
[381004813,1755936650189,-499.0,0.00013698,2]
[381004814,1755936650198,-413.49,0.00013698,2]
[381004815,1755936650207,-746.65,0.00013698,2]
[381004816,1755936650216,-563.16,0.00013698,2]
[381004817,1755936650226,-400.0,0.00013698,2]
[381004818,1755936650235,-400.0,0.00013698,2]
[381004819,1755936650245,-400.0,0.00013698,2]
[381004820,1755936650255,-744.71,0.00013698,2]
[381004821,1755936650265,-400.0,0.00013698,2]
[381004822,1755936650275,-400.0,0.00013698,2]
[381004823,1755936650284,-400.0,0.00013698,2]
[381004824,1755936650294,-400.0,0.00013698,2]
[381004825,1755936650303,-400.0,0.00013698,2]
[381004826,1755936650313,-400.0,0.00013698,2]
[381004827,1755936650323,-402.63329117,0.00013698,2]
[381004828,1755936650332,-400.0,0.00013698,2]
[381004829,1755936650342,-400.0,0.00013698,2]
[381004830,1755936650351,-814.71,0.00013698,2]
[381004831,1755936650361,-400.0,0.00013698,2]
[381004832,1755936650371,-400.0,0.00013698,2]
[381004833,1755936650380,-524.43,0.00013698,2]
[381004834,1755936650390,-400.0,0.00013698,2]
[381004835,1755936650400,-401.41463299,0.00013698,2]
[381004836,1755936650410,-695.19,0.00013698,2]
[381004837,1755936650420,-400.0,0.00013698,2]
[381004838,1755936650430,-680.47,0.00013698,2]
[381004839,1755936650440,-403.23367655,0.00013698,2]
[381004840,1755936650450,-400.0,0.00013698,2]
[381004841,1755936650459,-400.0,0.00013698,2]
[381004842,1755936650469,-400.0,0.00013698,2]
[381004843,1755936650480,-400.0,0.00013698,2]
[381004844,1755936650489,-1023.85,0.00013698,2]
[381004845,1755936650499,-400.0,0.00013698,2]
[381004846,1755936650509,-400.0,0.00013698,2]
[381004847,1755936650518,-400.0,0.00013698,2]
[381004848,1755936650528,-400.0,0.00013698,2]
[381004849,1755936650538,-400.0,0.00013698,2]
[381004850,1755936650547,-400.0,0.00013698,2]
[381004851,1755936650557,-590.06,0.00013698,2]
[381004852,1755936650566,-400.0,0.00013698,2]